[Event "Titled Tuesday Blitz November 07 Early 2023"]
[White "Feliz Dotel, Dewar Bienvenido"]
[Black "Kovalevsky, Stanislav"]
[WhiteFideId "6402801"]
[BlackFideId "13508598"]
[WhiteElo "2123"]
[BlackElo "2432"]
[Result "0-1"]
[Round "2"]
[TimeControl "180+1"]
[Date "2023.11.07"]
[WhiteClock "0:00:00"]
[BlackClock "0:00:12"]
[Board "237"]

1. d4 {[%clk 0:02:59]}  d5 {[%clk 0:03:00]} 2. e3 {[%clk 0:02:59]}  c5 {[%clk 0:02:57]} 3. dxc5 {[%clk 0:02:58]}  e5 {[%clk 0:02:57]} 4. b4 {[%clk 0:02:56]}  a5 {[%clk 0:02:57]} 5. c3 {[%clk 0:02:54]}  axb4 {[%clk 0:02:57]} 6. cxb4 {[%clk 0:02:54]}  Nc6 {[%clk 0:02:58]} 7. Bb5 {[%clk 0:02:49]}  Nf6 {[%clk 0:02:50]} 8. Nf3 {[%clk 0:02:46]}  e4 {[%clk 0:02:39]} 9. Nd4 {[%clk 0:02:36]}  Bd7 {[%clk 0:02:38]} 10. Bxc6 {[%clk 0:02:30]}  bxc6 {[%clk 0:02:35]} 11. O-O {[%clk 0:02:29]}  Qc7 {[%clk 0:02:33]} 12. a4 {[%clk 0:02:29]}  Ng4 {[%clk 0:02:29]} 13. g3 {[%clk 0:02:27]}  Ne5 {[%clk 0:02:19]} 14. Nc3 {[%clk 0:02:18]}  h5 {[%clk 0:02:18]} 15. b5 {[%clk 0:02:18]}  h4 {[%clk 0:02:17]} 16. bxc6 {[%clk 0:02:07]}  Bxc6 {[%clk 0:02:17]} 17. Ncb5 {[%clk 0:01:59]}  Bxb5 {[%clk 0:02:04]} 18. Nxb5 {[%clk 0:01:57]}  Qd7 {[%clk 0:02:05]} 19. c6 {[%clk 0:01:46]}  Qxc6 {[%clk 0:01:36]} 20. Bb2 {[%clk 0:01:37]}  Nf3+ {[%clk 0:01:34]} 21. Kg2 {[%clk 0:01:33]}  hxg3 {[%clk 0:01:16]} 22. Rh1 {[%clk 0:01:32]}  gxh2 {[%clk 0:01:12]} 23. Qxd5 {[%clk 0:01:20]}  Qxd5 {[%clk 0:00:40]} 24. Nc7+ {[%clk 0:01:19]}  Kd8 {[%clk 0:00:36]} 25. Nxd5 {[%clk 0:01:20]}  Rh6 {[%clk 0:00:31]} 26. Bd4 {[%clk 0:00:54]}  Rg6+ {[%clk 0:00:22]} 27. Kf1 {[%clk 0:00:54]}  Rg1+ {[%clk 0:00:23]} 28. Ke2 {[%clk 0:00:54]}  Rxh1 {[%clk 0:00:22]} 29. Rxh1 {[%clk 0:00:54]}  Rxa4 {[%clk 0:00:21]} 30. Nc3 {[%clk 0:00:54]}  Nxd4+ {[%clk 0:00:19]} 31. exd4 {[%clk 0:00:52]}  Rxd4 {[%clk 0:00:20]} 32. Rxh2 {[%clk 0:00:51]}  f5 {[%clk 0:00:20]} 33. Rh5 {[%clk 0:00:49]}  g6 {[%clk 0:00:19]} 34. Rh8 {[%clk 0:00:44]}  Ke7 {[%clk 0:00:18]} 35. Rh7+ {[%clk 0:00:44]}  Ke6 {[%clk 0:00:18]} 36. Nb5 {[%clk 0:00:40]}  Rb4 {[%clk 0:00:15]} 37. Nc7+ {[%clk 0:00:40]}  Ke5 {[%clk 0:00:13]} 38. Rf7 {[%clk 0:00:34]}  Bd6 {[%clk 0:00:12]} 39. Ne8 {[%clk 0:00:33]}  Bc5 {[%clk 0:00:09]} 40. Nf6 {[%clk 0:00:15]}  Rb2+ {[%clk 0:00:09]} 41. Ke1 {[%clk 0:00:14]}  Ke6 {[%clk 0:00:10]} 42. Nxe4 {[%clk 0:00:06]}  Kxf7 {[%clk 0:00:09]} 43. Nxc5 {[%clk 0:00:07]}  Ra2 {[%clk 0:00:10]} 44. Kf1 {[%clk 0:00:06]}  Kf6 {[%clk 0:00:10]} 45. Nd3 {[%clk 0:00:06]}  Kg5 {[%clk 0:00:10]} 46. Kg2 {[%clk 0:00:06]}  Kg4 {[%clk 0:00:10]} 47. Ne5+ {[%clk 0:00:06]}  Kh5 {[%clk 0:00:10]} 48. Nd3 {[%clk 0:00:04]}  g5 {[%clk 0:00:10]} 49. Kf1 {[%clk 0:00:03]}  Rd2 {[%clk 0:00:10]} 50. Ne5 {[%clk 0:00:03]}  Rd5 {[%clk 0:00:10]} 51. Nf3 {[%clk 0:00:03]}  g4 {[%clk 0:00:10]} 52. Ne1 {[%clk 0:00:03]}  f4 {[%clk 0:00:10]} 53. Ng2 {[%clk 0:00:03]}  Kg5 {[%clk 0:00:10]} 54. Ke2 {[%clk 0:00:01]}  f3+ {[%clk 0:00:10]} 55. Kf1 {[%clk 0:00:02]}  fxg2+ {[%clk 0:00:11]} 56. Kxg2 {[%clk 0:00:02]}  Kf4 {[%clk 0:00:12]} 57. Kg1 {[%clk 0:00:03]}  Rd2 {[%clk 0:00:12]} 58. Kg2 {[%clk 0:00:00]}  g3 {[%clk 0:00:12]} 0-1


[Site "https://www.chess.com"]

[Event "Titled Tuesday Blitz November 07 Early 2023"]
[White "Flis, Pawel"]
[Black "Shuvalov, Evgenij"]
[WhiteFideId "1112864"]
[BlackFideId "4187237"]
[WhiteElo "2110"]
[BlackElo "2431"]
[Result "0-1"]
[Round "2"]
[TimeControl "180+1"]
[Date "2023.11.07"]
[WhiteClock "0:00:00"]
[BlackClock "0:00:46"]
[Board "239"]

1. e4 {[%clk 0:02:36]}  e6 {[%clk 0:02:59]} 2. d4 {[%clk 0:02:33]}  d5 {[%clk 0:02:59]} 3. Nc3 {[%clk 0:02:27]}  Bb4 {[%clk 0:02:59]} 4. e5 {[%clk 0:02:20]}  c5 {[%clk 0:02:58]} 5. a3 {[%clk 0:02:20]}  Bxc3+ {[%clk 0:02:58]} 6. bxc3 {[%clk 0:02:19]}  Ne7 {[%clk 0:02:59]} 7. a4 {[%clk 0:02:17]}  Nbc6 {[%clk 0:02:57]} 8. Nf3 {[%clk 0:02:11]}  Qa5 {[%clk 0:02:55]} 9. Bd2 {[%clk 0:02:09]}  Bd7 {[%clk 0:02:55]} 10. Bd3 {[%clk 0:02:07]}  c4 {[%clk 0:02:54]} 11. Be2 {[%clk 0:02:07]}  f6 {[%clk 0:02:54]} 12. exf6 {[%clk 0:02:05]}  gxf6 {[%clk 0:02:54]} 13. O-O {[%clk 0:02:01]}  O-O-O {[%clk 0:02:53]} 14. Qb1 {[%clk 0:01:57]}  Nf5 {[%clk 0:02:48]} 15. Qb5 {[%clk 0:01:54]}  Nd6 {[%clk 0:02:37]} 16. Qxa5 {[%clk 0:01:53]}  Nxa5 {[%clk 0:02:37]} 17. Rfe1 {[%clk 0:01:49]}  Ne4 {[%clk 0:02:36]} 18. g3 {[%clk 0:01:32]}  h5 {[%clk 0:02:34]} 19. h4 {[%clk 0:01:31]}  Be8 {[%clk 0:02:30]} 20. Ra3 {[%clk 0:01:26]}  Rd6 {[%clk 0:02:29]} 21. Bf4 {[%clk 0:01:26]}  Rb6 {[%clk 0:02:28]} 22. Nd2 {[%clk 0:01:22]}  Bg6 {[%clk 0:02:15]} 23. Nxe4 {[%clk 0:00:50]}  Bxe4 {[%clk 0:02:16]} 24. Ra2 {[%clk 0:00:44]}  Bg6 {[%clk 0:02:04]} 25. Bf3 {[%clk 0:00:37]}  Kd7 {[%clk 0:02:01]} 26. Re2 {[%clk 0:00:20]}  Rb1+ {[%clk 0:02:00]} 27. Kg2 {[%clk 0:00:19]}  Rc8 {[%clk 0:01:58]} 28. g4 {[%clk 0:00:14]}  hxg4 {[%clk 0:01:53]} 29. Bxg4 {[%clk 0:00:15]}  Rc6 {[%clk 0:01:48]} 30. h5 {[%clk 0:00:15]}  Be4+ {[%clk 0:01:46]} 31. f3 {[%clk 0:00:13]}  Bh7 {[%clk 0:01:46]} 32. h6 {[%clk 0:00:13]}  Bg6 {[%clk 0:01:28]} 33. Rf2 {[%clk 0:00:12]}  Re1 {[%clk 0:01:24]} 34. Rf1 {[%clk 0:00:11]}  Rxf1 {[%clk 0:01:22]} 35. Kxf1 {[%clk 0:00:10]}  Rb6 {[%clk 0:01:22]} 36. Kf2 {[%clk 0:00:09]}  Rb1 {[%clk 0:01:22]} 37. Ra3 {[%clk 0:00:08]}  Bxc2 {[%clk 0:01:19]} 38. Ra2 {[%clk 0:00:08]}  Bg6 {[%clk 0:01:18]} 39. Re2 {[%clk 0:00:08]}  f5 {[%clk 0:01:13]} 40. Bh3 {[%clk 0:00:06]}  Nb3 {[%clk 0:01:03]} 41. Kg3 {[%clk 0:00:06]}  Rg1+ {[%clk 0:01:02]} 42. Kh4 {[%clk 0:00:05]}  a5 {[%clk 0:00:58]} 43. Bh2 {[%clk 0:00:05]}  Rh1 {[%clk 0:00:56]} 44. Kg5 {[%clk 0:00:05]}  Bh7 {[%clk 0:00:51]} 45. Kf6 {[%clk 0:00:05]}  Nc1 {[%clk 0:00:50]} 46. Rg2 {[%clk 0:00:00]}  f4 {[%clk 0:00:46]} 0-1


[Site "https://www.chess.com"]

[Event "Titled Tuesday Blitz November 07 Early 2023"]
[White "Rios Escobar, Adan"]
[Black "Osiecki, Stanislaw"]
[WhiteFideId "3403645"]
[BlackFideId "1102990"]
[WhiteElo "2428"]
[BlackElo "2105"]
[Result "1-0"]
[Round "2"]
[TimeControl "180+1"]
[Date "2023.11.07"]
[WhiteClock "0:00:14"]
[BlackClock "0:00:00"]
[Board "240"]

1. Nf3 {[%clk 0:02:59]}  Nf6 {[%clk 0:02:57]} 2. e3 {[%clk 0:02:57]}  d5 {[%clk 0:02:55]} 3. c4 {[%clk 0:02:56]}  dxc4 {[%clk 0:02:55]} 4. Bxc4 {[%clk 0:02:55]}  e6 {[%clk 0:02:54]} 5. O-O {[%clk 0:02:55]}  Be7 {[%clk 0:02:54]} 6. Nc3 {[%clk 0:02:55]}  O-O {[%clk 0:02:54]} 7. b3 {[%clk 0:02:55]}  b6 {[%clk 0:02:55]} 8. Bb2 {[%clk 0:02:55]}  Bb7 {[%clk 0:02:55]} 9. Rc1 {[%clk 0:02:56]}  Nc6 {[%clk 0:02:55]} 10. a3 {[%clk 0:02:52]}  Na5 {[%clk 0:02:55]} 11. Be2 {[%clk 0:02:48]}  c5 {[%clk 0:02:53]} 12. d4 {[%clk 0:02:45]}  cxd4 {[%clk 0:02:53]} 13. Nxd4 {[%clk 0:02:46]}  Nd5 {[%clk 0:02:50]} 14. Bf3 {[%clk 0:02:36]}  Nxc3 {[%clk 0:02:48]} 15. Rxc3 {[%clk 0:02:37]}  Bxf3 {[%clk 0:02:39]} 16. Qxf3 {[%clk 0:02:38]}  Rc8 {[%clk 0:02:33]} 17. Rfc1 {[%clk 0:02:32]}  Rxc3 {[%clk 0:02:29]} 18. Rxc3 {[%clk 0:02:33]}  Qd7 {[%clk 0:02:29]} 19. b4 {[%clk 0:02:29]}  Nb7 {[%clk 0:02:28]} 20. g3 {[%clk 0:02:20]}  Rc8 {[%clk 0:02:21]} 21. Rxc8+ {[%clk 0:02:04]}  Qxc8 {[%clk 0:02:21]} 22. Nb5 {[%clk 0:02:04]}  a6 {[%clk 0:02:14]} 23. Qg4 {[%clk 0:01:55]}  f6 {[%clk 0:02:12]} 24. Nd4 {[%clk 0:01:51]}  Nd8 {[%clk 0:01:53]} 25. h4 {[%clk 0:01:44]}  Bf8 {[%clk 0:01:53]} 26. h5 {[%clk 0:01:42]}  f5 {[%clk 0:01:52]} 27. Qg5 {[%clk 0:01:36]}  Nf7 {[%clk 0:01:52]} 28. Qf4 {[%clk 0:01:28]}  Bd6 {[%clk 0:01:38]} 29. Qf3 {[%clk 0:01:21]}  Ne5 {[%clk 0:01:25]} 30. Qe2 {[%clk 0:01:18]}  Nc4 {[%clk 0:01:23]} 31. Bc1 {[%clk 0:01:15]}  b5 {[%clk 0:01:16]} 32. h6 {[%clk 0:01:15]}  gxh6 {[%clk 0:01:12]} 33. Qh5 {[%clk 0:01:08]}  Bf8 {[%clk 0:01:02]} 34. g4 {[%clk 0:01:03]}  Nd6 {[%clk 0:00:49]} 35. Bb2 {[%clk 0:00:50]}  Qe8 {[%clk 0:00:48]} 36. Qxe8 {[%clk 0:00:37]}  Nxe8 {[%clk 0:00:48]} 37. gxf5 {[%clk 0:00:37]}  exf5 {[%clk 0:00:47]} 38. Nxf5 {[%clk 0:00:38]}  Nc7 {[%clk 0:00:39]} 39. e4 {[%clk 0:00:34]}  Ne6 {[%clk 0:00:39]} 40. Be5 {[%clk 0:00:25]}  Ng5 {[%clk 0:00:34]} 41. Ng3 {[%clk 0:00:18]}  h5 {[%clk 0:00:32]} 42. Kg2 {[%clk 0:00:15]}  h4 {[%clk 0:00:32]} 43. f4 {[%clk 0:00:14]}  Nf7 {[%clk 0:00:00]} 44. Nf5 {[%clk 0:00:14]} 1-0


[Site "https://www.chess.com"]

[Event "Titled Tuesday Blitz November 07 Early 2023"]
[White "WindWhistler11"]
[Black "Yushko, Olga"]
[BlackFideId "14114500"]
[WhiteElo "2427"]
[BlackElo "2083"]
[Result "1-0"]
[Round "2"]
[TimeControl "180+1"]
[Date "2023.11.07"]
[WhiteClock "0:01:39"]
[BlackClock "0:00:00"]
[Board "242"]

1. Nf3 {[%clk 0:02:56]}  e6 {[%clk 0:01:12]} 2. c4 {[%clk 0:02:56]}  f5 {[%clk 0:01:12]} 3. g3 {[%clk 0:02:57]}  Nf6 {[%clk 0:01:13]} 4. Bg2 {[%clk 0:02:58]}  Be7 {[%clk 0:01:14]} 5. O-O {[%clk 0:02:58]}  O-O {[%clk 0:01:15]} 6. Nc3 {[%clk 0:02:59]}  d6 {[%clk 0:01:15]} 7. d3 {[%clk 0:03:00]}  e5 {[%clk 0:01:15]} 8. e3 {[%clk 0:02:58]}  Qe8 {[%clk 0:01:15]} 9. b4 {[%clk 0:02:58]}  a5 {[%clk 0:01:15]} 10. Nb5 {[%clk 0:02:57]}  Bd8 {[%clk 0:01:15]} 11. bxa5 {[%clk 0:02:54]}  Nc6 {[%clk 0:01:13]} 12. a4 {[%clk 0:02:50]}  Bd7 {[%clk 0:01:11]} 13. Ba3 {[%clk 0:02:50]}  Rxa5 {[%clk 0:01:08]} 14. Qb3 {[%clk 0:02:42]}  Kh8 {[%clk 0:01:05]} 15. Bb2 {[%clk 0:02:37]}  e4 {[%clk 0:00:59]} 16. Nfd4 {[%clk 0:02:33]}  Nxd4 {[%clk 0:00:54]} 17. exd4 {[%clk 0:02:30]}  exd3 {[%clk 0:00:46]} 18. Qxd3 {[%clk 0:02:26]}  Ne4 {[%clk 0:00:43]} 19. Rfe1 {[%clk 0:02:20]}  Bxb5 {[%clk 0:00:33]} 20. axb5 {[%clk 0:01:57]}  Rxa1 {[%clk 0:00:33]} 21. Bxa1 {[%clk 0:01:58]}  Qf7 {[%clk 0:00:16]} 22. Bxe4 {[%clk 0:01:45]}  fxe4 {[%clk 0:00:16]} 23. Qc2 {[%clk 0:01:45]}  d5 {[%clk 0:00:12]} 24. cxd5 {[%clk 0:01:45]}  Qxd5 {[%clk 0:00:13]} 25. Qxe4 {[%clk 0:01:45]}  Qxb5 {[%clk 0:00:11]} 26. d5 {[%clk 0:01:44]}  Qa5 {[%clk 0:00:00]} 27. Bd4 {[%clk 0:01:39]} 1-0


[Site "https://www.chess.com"]

[Event "Titled Tuesday Blitz November 07 Early 2023"]
[White "abelmat"]
[Black "Urquhart, Ed"]
[BlackFideId "2603748"]
[WhiteElo "1978"]
[BlackElo "2411"]
[Result "0-1"]
[Round "2"]
[TimeControl "180+1"]
[Date "2023.11.07"]
[WhiteClock "0:00:05"]
[BlackClock "0:00:19"]
[Board "248"]

1. d4 {[%clk 0:03:00]}  Nf6 {[%clk 0:02:59]} 2. c4 {[%clk 0:03:00]}  e6 {[%clk 0:03:00]} 3. Nf3 {[%clk 0:02:57]}  Nc6 {[%clk 0:02:59]} 4. Nc3 {[%clk 0:02:53]}  Bb4 {[%clk 0:02:58]} 5. Bd2 {[%clk 0:02:51]}  O-O {[%clk 0:02:57]} 6. g3 {[%clk 0:02:48]}  d6 {[%clk 0:02:56]} 7. Bg2 {[%clk 0:02:48]}  e5 {[%clk 0:02:56]} 8. d5 {[%clk 0:02:41]}  Nb8 {[%clk 0:02:56]} 9. h3 {[%clk 0:02:40]}  a5 {[%clk 0:02:55]} 10. O-O {[%clk 0:02:38]}  Nbd7 {[%clk 0:02:53]} 11. a3 {[%clk 0:02:33]}  Bxc3 {[%clk 0:02:49]} 12. Bxc3 {[%clk 0:02:31]}  a4 {[%clk 0:02:48]} 13. Nd2 {[%clk 0:02:22]}  Nc5 {[%clk 0:02:47]} 14. Qc2 {[%clk 0:02:14]}  b6 {[%clk 0:02:39]} 15. Kh2 {[%clk 0:02:09]}  Qe7 {[%clk 0:02:34]} 16. e4 {[%clk 0:02:00]}  h6 {[%clk 0:02:30]} 17. Rae1 {[%clk 0:01:55]}  Nh7 {[%clk 0:02:25]} 18. f4 {[%clk 0:01:53]}  f6 {[%clk 0:02:18]} 19. f5 {[%clk 0:01:44]}  Ba6 {[%clk 0:02:17]} 20. Bf3 {[%clk 0:01:33]}  b5 {[%clk 0:02:15]} 21. Bb4 {[%clk 0:01:23]}  bxc4 {[%clk 0:02:04]} 22. Bxc5 {[%clk 0:01:18]}  dxc5 {[%clk 0:02:05]} 23. Nxc4 {[%clk 0:01:16]}  Rfb8 {[%clk 0:02:02]} 24. Rf2 {[%clk 0:01:10]}  Ng5 {[%clk 0:01:42]} 25. Bg2 {[%clk 0:00:59]}  Nf7 {[%clk 0:01:38]} 26. Bf3 {[%clk 0:00:57]}  Nd6 {[%clk 0:01:34]} 27. Ne3 {[%clk 0:00:54]}  c4 {[%clk 0:01:27]} 28. Qxa4 {[%clk 0:00:43]}  c3 {[%clk 0:01:13]} 29. bxc3 {[%clk 0:00:42]}  Bd3 {[%clk 0:01:09]} 30. Qd1 {[%clk 0:00:27]}  Bxe4 {[%clk 0:01:09]} 31. Ng4 {[%clk 0:00:21]}  Bxf3 {[%clk 0:00:59]} 32. Qxf3 {[%clk 0:00:20]}  Rxa3 {[%clk 0:00:57]} 33. Qe3 {[%clk 0:00:17]}  Rbb3 {[%clk 0:00:50]} 34. Nxh6+ {[%clk 0:00:17]}  gxh6 {[%clk 0:00:50]} 35. Qxh6 {[%clk 0:00:16]}  Qg7 {[%clk 0:00:51]} 36. Qh5 {[%clk 0:00:15]}  Rxc3 {[%clk 0:00:49]} 37. Rg1 {[%clk 0:00:13]}  Qg5 {[%clk 0:00:34]} 38. Qe2 {[%clk 0:00:10]}  Re3 {[%clk 0:00:27]} 39. Qb2 {[%clk 0:00:08]}  Rab3 {[%clk 0:00:22]} 40. Qa2 {[%clk 0:00:08]}  Rxg3 {[%clk 0:00:20]} 41. Qa8+ {[%clk 0:00:06]}  Kh7 {[%clk 0:00:19]} 42. Rfg2 {[%clk 0:00:05]}  Rxh3# {[%clk 0:00:19]} 0-1


[Site "https://www.chess.com"]

[Event "Titled Tuesday Blitz November 07 Early 2023"]
[White "Matveeva, Olga"]
[Black "Mirza, Diana"]
[WhiteFideId "24107018"]
[BlackFideId "2503999"]
[WhiteElo "2409"]
[BlackElo "1961"]
[Result "1-0"]
[Round "2"]
[TimeControl "180+1"]
[Date "2023.11.07"]
[WhiteClock "0:01:00"]
[BlackClock "0:00:13"]
[Board "249"]

1. d4 {[%clk 0:03:00]}  Nf6 {[%clk 0:02:52]} 2. c4 {[%clk 0:03:01]}  g6 {[%clk 0:02:50]} 3. g3 {[%clk 0:03:01]}  Bg7 {[%clk 0:02:51]} 4. Bg2 {[%clk 0:03:02]}  O-O {[%clk 0:02:52]} 5. Nc3 {[%clk 0:03:02]}  d6 {[%clk 0:02:53]} 6. Nf3 {[%clk 0:03:02]}  Nbd7 {[%clk 0:02:52]} 7. O-O {[%clk 0:03:02]}  e5 {[%clk 0:02:53]} 8. e4 {[%clk 0:03:02]}  exd4 {[%clk 0:02:51]} 9. Nxd4 {[%clk 0:03:02]}  a5 {[%clk 0:02:51]} 10. Re1 {[%clk 0:03:01]}  Nc5 {[%clk 0:02:51]} 11. h3 {[%clk 0:03:00]}  Bd7 {[%clk 0:02:38]} 12. Ndb5 {[%clk 0:02:58]}  Qc8 {[%clk 0:02:35]} 13. Kh2 {[%clk 0:02:56]}  Bc6 {[%clk 0:02:17]} 14. Bf4 {[%clk 0:02:51]}  Nh5 {[%clk 0:02:07]} 15. Be3 {[%clk 0:02:25]}  f5 {[%clk 0:01:51]} 16. Bxc5 {[%clk 0:02:10]}  dxc5 {[%clk 0:01:49]} 17. e5 {[%clk 0:02:06]}  Bxg2 {[%clk 0:01:48]} 18. Kxg2 {[%clk 0:02:07]}  f4 {[%clk 0:01:48]} 19. Qd5+ {[%clk 0:01:53]}  Kh8 {[%clk 0:01:46]} 20. Qxc5 {[%clk 0:01:52]}  f3+ {[%clk 0:01:33]} 21. Kh2 {[%clk 0:01:51]}  Qf5 {[%clk 0:01:16]} 22. Qe3 {[%clk 0:01:34]}  Rae8 {[%clk 0:01:10]} 23. e6 {[%clk 0:01:31]}  Re7 {[%clk 0:00:48]} 24. Nd5 {[%clk 0:01:29]}  Ree8 {[%clk 0:00:43]} 25. Nbxc7 {[%clk 0:01:28]}  Bxb2 {[%clk 0:00:38]} 26. Nxe8 {[%clk 0:01:16]}  Bxa1 {[%clk 0:00:37]} 27. Rxa1 {[%clk 0:01:17]}  Rxe8 {[%clk 0:00:37]} 28. Re1 {[%clk 0:01:14]}  Ng7 {[%clk 0:00:35]} 29. e7 {[%clk 0:01:12]}  Qf7 {[%clk 0:00:30]} 30. Nc7 {[%clk 0:01:11]}  Nf5 {[%clk 0:00:30]} 31. Qe5+ {[%clk 0:01:10]}  Kg8 {[%clk 0:00:22]} 32. Nxe8 {[%clk 0:01:10]}  Qxe8 {[%clk 0:00:23]} 33. Qe6+ {[%clk 0:01:10]}  Kg7 {[%clk 0:00:22]} 34. Qd5 {[%clk 0:01:07]}  Nxe7 {[%clk 0:00:19]} 35. Qxb7 {[%clk 0:01:06]}  Kf8 {[%clk 0:00:18]} 36. c5 {[%clk 0:01:03]}  Qf7 {[%clk 0:00:14]} 37. c6 {[%clk 0:01:01]}  Qd5 {[%clk 0:00:13]} 38. Qxe7+ {[%clk 0:01:00]} 1-0


[Site "https://www.chess.com"]

[Event "Titled Tuesday Blitz November 07 Early 2023"]
[White "Nihal Sarin"]
[Black "Saydaliev, Saidakbar"]
[WhiteFideId "25092340"]
[BlackFideId "14203693"]
[WhiteElo "3111"]
[BlackElo "2780"]
[Result "1-0"]
[Round "3"]
[TimeControl "180+1"]
[Date "2023.11.07"]
[WhiteClock "0:00:36"]
[BlackClock "0:00:00"]
[Board "2"]

1. a3 {[%clk 0:03:00]}  e5 {[%clk 0:02:59]} 2. c4 {[%clk 0:03:00]}  Nf6 {[%clk 0:02:59]} 3. d3 {[%clk 0:03:00]}  c6 {[%clk 0:02:59]} 4. Nf3 {[%clk 0:03:00]}  Bd6 {[%clk 0:02:59]} 5. Nc3 {[%clk 0:02:58]}  O-O {[%clk 0:02:59]} 6. g4 {[%clk 0:02:47]}  Re8 {[%clk 0:02:51]} 7. g5 {[%clk 0:02:46]}  Nh5 {[%clk 0:02:51]} 8. Ne4 {[%clk 0:02:46]}  Bf8 {[%clk 0:02:50]} 9. c5 {[%clk 0:02:42]}  d5 {[%clk 0:02:48]} 10. cxd6 {[%clk 0:02:42]}  Bf5 {[%clk 0:02:47]} 11. e3 {[%clk 0:02:31]}  g6 {[%clk 0:01:38]} 12. Nfd2 {[%clk 0:02:23]}  Bxd6 {[%clk 0:01:30]} 13. Be2 {[%clk 0:02:23]}  Be7 {[%clk 0:01:30]} 14. Bxh5 {[%clk 0:02:23]}  gxh5 {[%clk 0:01:30]} 15. Qxh5 {[%clk 0:02:23]}  Qxd3 {[%clk 0:01:11]} 16. Nf6+ {[%clk 0:02:20]}  Bxf6 {[%clk 0:00:48]} 17. gxf6 {[%clk 0:02:21]}  Kh8 {[%clk 0:00:48]} 18. Qxf7 {[%clk 0:01:45]}  Rg8 {[%clk 0:00:47]} 19. Qc4 {[%clk 0:01:36]}  Nd7 {[%clk 0:00:43]} 20. Qxd3 {[%clk 0:01:26]}  Bxd3 {[%clk 0:00:44]} 21. b4 {[%clk 0:01:22]}  Raf8 {[%clk 0:00:33]} 22. Bb2 {[%clk 0:01:21]}  Rxf6 {[%clk 0:00:34]} 23. f4 {[%clk 0:01:19]}  Rg2 {[%clk 0:00:29]} 24. O-O-O {[%clk 0:01:18]}  c5 {[%clk 0:00:25]} 25. Nf3 {[%clk 0:00:59]}  c4 {[%clk 0:00:11]} 26. Nxe5 {[%clk 0:00:50]}  c3 {[%clk 0:00:04]} 27. Bxc3 {[%clk 0:00:38]}  Nxe5 {[%clk 0:00:00]} 28. Bxe5 {[%clk 0:00:36]} 1-0


[Site "https://www.chess.com"]

[Event "Titled Tuesday Blitz November 07 Early 2023"]
[White "Pakleza, Zbigniew"]
[Black "Firouzja, Alireza"]
[WhiteFideId "1119290"]
[BlackFideId "12573981"]
[WhiteElo "2773"]
[BlackElo "3075"]
[Result "0-1"]
[Round "3"]
[TimeControl "180+1"]
[Date "2023.11.07"]
[WhiteClock "0:00:00"]
[BlackClock "0:00:24"]
[Board "4"]

1. d4 {[%clk 0:03:00]}  a6 {[%clk 0:03:00]} 2. Nf3 {[%clk 0:03:00]}  c6 {[%clk 0:03:01]} 3. Bf4 {[%clk 0:02:59]}  g6 {[%clk 0:03:00]} 4. e3 {[%clk 0:02:58]}  Bg7 {[%clk 0:03:00]} 5. c4 {[%clk 0:02:58]}  Nh6 {[%clk 0:03:00]} 6. Nc3 {[%clk 0:02:59]}  O-O {[%clk 0:03:00]} 7. Be2 {[%clk 0:02:58]}  f6 {[%clk 0:03:01]} 8. h3 {[%clk 0:02:59]}  Nf7 {[%clk 0:03:01]} 9. O-O {[%clk 0:02:59]}  d6 {[%clk 0:02:57]} 10. Bh2 {[%clk 0:02:59]}  e5 {[%clk 0:02:57]} 11. Rc1 {[%clk 0:02:58]}  Qe7 {[%clk 0:02:57]} 12. b4 {[%clk 0:02:58]}  Rd8 {[%clk 0:02:55]} 13. Qb3 {[%clk 0:02:55]}  Nd7 {[%clk 0:02:52]} 14. Rfd1 {[%clk 0:02:53]}  Nf8 {[%clk 0:02:52]} 15. a4 {[%clk 0:02:49]}  a5 {[%clk 0:02:48]} 16. b5 {[%clk 0:02:43]}  e4 {[%clk 0:02:44]} 17. Nd2 {[%clk 0:02:41]}  f5 {[%clk 0:02:45]} 18. Rb1 {[%clk 0:02:28]}  g5 {[%clk 0:02:42]} 19. bxc6 {[%clk 0:02:16]}  bxc6 {[%clk 0:02:43]} 20. Bf1 {[%clk 0:01:57]}  Ng6 {[%clk 0:02:42]} 21. Qa3 {[%clk 0:01:46]}  h5 {[%clk 0:02:39]} 22. Rb6 {[%clk 0:01:44]}  Bd7 {[%clk 0:02:38]} 23. Rb7 {[%clk 0:01:44]}  g4 {[%clk 0:02:38]} 24. hxg4 {[%clk 0:01:43]}  hxg4 {[%clk 0:02:39]} 25. Rdb1 {[%clk 0:01:39]}  Bf6 {[%clk 0:02:28]} 26. Rc7 {[%clk 0:01:30]}  Nf8 {[%clk 0:02:15]} 27. d5 {[%clk 0:01:24]}  c5 {[%clk 0:02:09]} 28. Rbb7 {[%clk 0:01:24]}  Rab8 {[%clk 0:02:01]} 29. Nb5 {[%clk 0:01:20]}  Rxb7 {[%clk 0:02:01]} 30. Rxb7 {[%clk 0:01:21]}  Be5 {[%clk 0:01:50]} 31. Bxe5 {[%clk 0:01:13]}  Qxe5 {[%clk 0:01:50]} 32. Qc3 {[%clk 0:01:11]}  Qxc3 {[%clk 0:01:13]} 33. Nxc3 {[%clk 0:01:11]}  Ra8 {[%clk 0:01:11]} 34. Ndb1 {[%clk 0:00:57]}  Kg7 {[%clk 0:01:10]} 35. Na3 {[%clk 0:00:56]}  Kf6 {[%clk 0:01:10]} 36. Nab5 {[%clk 0:00:56]}  Ke7 {[%clk 0:01:04]} 37. Ne2 {[%clk 0:00:47]}  Ng6 {[%clk 0:01:00]} 38. Nc7 {[%clk 0:00:35]}  Rh8 {[%clk 0:00:50]} 39. Ne6 {[%clk 0:00:34]}  Nge5 {[%clk 0:00:47]} 40. N2f4 {[%clk 0:00:33]}  Kf6 {[%clk 0:00:47]} 41. Be2 {[%clk 0:00:26]}  Bxa4 {[%clk 0:00:46]} 42. Ra7 {[%clk 0:00:23]}  Bb3 {[%clk 0:00:46]} 43. Rxa5 {[%clk 0:00:21]}  Bxc4 {[%clk 0:00:47]} 44. Bxc4 {[%clk 0:00:18]}  Nxc4 {[%clk 0:00:48]} 45. Ra7 {[%clk 0:00:19]}  Nce5 {[%clk 0:00:46]} 46. Rc7 {[%clk 0:00:17]}  g3 {[%clk 0:00:40]} 47. fxg3 {[%clk 0:00:08]}  Ng4 {[%clk 0:00:40]} 48. Rc6 {[%clk 0:00:06]}  Ra8 {[%clk 0:00:35]} 49. Kf1 {[%clk 0:00:06]}  Ra1+ {[%clk 0:00:36]} 50. Ke2 {[%clk 0:00:06]}  Ra2+ {[%clk 0:00:34]} 51. Ke1 {[%clk 0:00:07]}  Nxe3 {[%clk 0:00:34]} 52. Nxc5 {[%clk 0:00:05]}  Nxg2+ {[%clk 0:00:31]} 53. Nxg2 {[%clk 0:00:05]}  Rxg2 {[%clk 0:00:32]} 54. Nd7+ {[%clk 0:00:03]}  Kg5 {[%clk 0:00:30]} 55. Rc7 {[%clk 0:00:01]}  Rxg3 {[%clk 0:00:29]} 56. Nb6 {[%clk 0:00:02]}  Ne5 {[%clk 0:00:29]} 57. Nc8 {[%clk 0:00:02]}  Nd3+ {[%clk 0:00:24]} 58. Ke2 {[%clk 0:00:02]}  Nf4+ {[%clk 0:00:24]} 59. Kf2 {[%clk 0:00:02]}  Rf3+ {[%clk 0:00:25]} 60. Kg1 {[%clk 0:00:02]}  e3 {[%clk 0:00:24]} 61. Re7 {[%clk 0:00:00]}  e2 {[%clk 0:00:24]} 0-1


[Site "https://www.chess.com"]